Workbook

Sheet сводная
G1: июнь | I1: июль
A3: 2383 | B3: Устройство железобетонных буронабивных свай Ø1,2 м длиной 28,1м под защитой обсадной трубы буровой установкой с крутящим моментом 150-250 кНм с извлечением обсадной трубы в грунтах 2 группы | C3: м3 | D3: 135.65 | E3: 59154.92 | F3: 8024364.542 | G3: =u_1(июнь!A$3:A$31,A3,июнь!D$3:D$31) -> 135.65 | I3: =SUMIF(июнь!$A$3:$A$31,сводная!A3,июнь!$D$3:$D$31) -> 135.65
A4: 2384 | B4: Устройство железобетонных буронабивных свай Ø1,2 м длиной 28,1м под защитой обсадной трубы буровой установкой с крутящим моментом 150-250 кНм с извлечением обсадной трубы в грунтах 3 группы | C4: м3 | D4: 288.25 | E4: 93295.59 | F4: 26892454.64 | G4: =u_1(июнь!A$3:A$31,A4,июнь!D$3:D$31) -> 0 | I4: =SUMIF(июнь!$A$3:$A$31,сводная!A4,июнь!$D$3:$D$31) -> 288.25
A5: 2385 | B5: Устройство железобетонных буронабивных свай Ø1,2 м длиной 28,1м под защитой обсадной трубы буровой установкой с крутящим моментом 150-250 кНм с извлечением обсадной трубы в грунтах 4 группы | C5: м3 | D5: 52.56 | E5: 131564.31 | F5: 6915020.205 | G5: =u_1(июнь!A$3:A$31,A5,июнь!D$3:D$31) -> 0 | I5: =SUMIF(июнь!$A$3:$A$31,сводная!A5,июнь!$D$3:$D$31) -> 52.56
A6: 2386 | B6: Заполнение бетона B30 F300 W6 методом ВПТ (бетон для транспортного строительства) | C6: м3 | D6: 481.55 | E6: 20955.78 | F6: 10091254.45 | G6: =u_1(июнь!A$3:A$31,A6,июнь!D$3:D$31) -> 0 | I6: =SUMIF(июнь!$A$3:$A$31,сводная!A6,июнь!$D$3:$D$31) -> 481.55
A7: 2387 | B7: Арматура: А400 Ø32мм | C7: т | D7: 62.4354 | E7: 160606.39 | F7: 10027524.13 | G7: =u_1(июнь!A$3:A$31,A7,июнь!D$3:D$31) -> 0 | I7: =SUMIF(июнь!$A$3:$A$31,сводная!A7,июнь!$D$3:$D$31) -> 62.4354
A8: 2388 | B8: А400 Ø22мм | C8: т | D8: 3.22935 | E8: 165876.64 | F8: 535673.735 | G8: =u_1(июнь!A$3:A$31,A8,июнь!D$3:D$31) -> 0 | I8: =SUMIF(июнь!$A$3:$A$31,сводная!A8,июнь!$D$3:$D$31) -> 3.22935
A9: 2389 | B9: А240 Ø8мм | C9: т | D9: 4.42365 | E9: 1413299.76 | F9: 6251943.498 | G9: =u_1(июнь!A$3:A$31,A9,июнь!D$3:D$31) -> 0 | I9: =SUMIF(июнь!$A$3:$A$31,сводная!A9,июнь!$D$3:$D$31) -> 4.42365
A10: 2390 | B10: Прокат | C10: т | D10: 4.4649 | E10: 274919.22 | F10: 1227486.813 | G10: =u_1(июнь!A$3:A$31,A10,июнь!D$3:D$31) -> 0 | I10: =SUMIF(июнь!$A$3:$A$31,сводная!A10,июнь!$D$3:$D$31) -> 4.4649
A11: 2391 | B11: Труба Ø60мм, толщина стенки 2,5мм | C11: т | D11: 4.9554 | E11: 165939.14 | F11: 822294.8181 | G11: =u_1(июнь!A$3:A$31,A11,июнь!D$3:D$31) -> 0 | I11: =SUMIF(июнь!$A$3:$A$31,сводная!A11,июнь!$D$3:$D$31) -> 4.9554
A12: 2392 | B12: Вязальная проволока | C12: кг | D12: 1401.77 | E12: 198.85 | F12: 278748.7602 | G12: =u_1(июнь!A$3:A$31,A12,июнь!D$3:D$31) -> 0 | I12: =SUMIF(июнь!$A$3:$A$31,сводная!A12,июнь!$D$3:$D$31) -> 1401.77
A13: 2393 | B13: Погрузка грунта экскаватором емкостью ковша 1,0м3 с последующей транспортировкой в грунтовый резерв, грунт 2 группы(γ=1.96т/м3) | C13: м3 | D13: 135.65 | E13: 376.79 | F13: 51111.59577 | G13: =u_1(июнь!A$3:A$31,A13,июнь!D$3:D$31) -> 135.65 | I13: =SUMIF(июнь!$A$3:$A$31,сводная!A13,июнь!$D$3:$D$31) -> 135.65
A14: 2394 | B14: Погрузка грунта экскаватором емкостью ковша 1,0м3 с последующей транспортировкой в грунтовый резерв, грунт 3 группы(γ=1.97т/м3) | C14: м3 | D14: 288.25 | E14: 396.07 | F14: 114167.1021 | G14: =u_1(июнь!A$3:A$31,A14,июнь!D$3:D$31) -> 288.25 | I14: =SUMIF(июнь!$A$3:$A$31,сводная!A14,июнь!$D$3:$D$31) -> 288.25
A15: 2395 | B15: Погрузка грунта экскаватором емкостью ковша 1,0м3 с последующей транспортировкой в грунтовый резерв, грунт 4 группы(γ=2.00т/м3) | C15: м3 | D15: 52.56 | E15: 427.39 | F15: 22463.562 | G15: =u_1(июнь!A$3:A$31,A15,июнь!D$3:D$31) -> 52.56 | I15: =SUMIF(июнь!$A$3:$A$31,сводная!A15,июнь!$D$3:$D$31) -> 52.56
A16: 2396 | B16: Снятие шламового слоя h=30см с погрузкой экскаватором емк. ковша 1,0м3 в автосамосвалы с последующей транспортировкой на утилизацию | C16: м3 | D16: 5.09 | E16: 6399.864188 | F16: 32575.30872 | G16: =u_1(июнь!A$3:A$31,A16,июнь!D$3:D$31) -> 5.09 | I16: =SUMIF(июнь!$A$3:$A$31,сводная!A16,июнь!$D$3:$D$31) -> 5.09
A17: 2397 | B17: Устройство бетонной подготовки под ростверк опоры, бетон B7,5, h=200мм | C17: м3 | D17: 17.96 | E17: 15859.04911 | F17: 284828.5221 | G17: =u_1(июнь!A$3:A$31,A17,июнь!D$3:D$31) -> 17.96 | I17: =SUMIF(июнь!$A$3:$A$31,сводная!A17,июнь!$D$3:$D$31) -> 17.96
A18: 2398 | B18: Устройство монолитного ростверка в деревометаллической опалубке,, бетон B30 F300 W8 (бетон для транспортного строительства) | C18: м3 | D18: 206.5 | E18: 44736.11095 | F18: 9238006.911 | G18: =u_1(июнь!A$3:A$31,A18,июнь!D$3:D$31) -> 0 | I18: =SUMIF(июнь!$A$3:$A$31,сводная!A18,июнь!$D$3:$D$31) -> 206.5
A19: 2399 | B19: Арматура: А400 Ø32мм | C19: т | D19: 2.69874 | E19: 160606.3189 | F19: 433434.6971 | G19: =u_1(июнь!A$3:A$31,A19,июнь!D$3:D$31) -> 0 | I19: =SUMIF(июнь!$A$3:$A$31,сводная!A19,июнь!$D$3:$D$31) -> 2.69874
A20: 2400 | B20: А400 Ø28мм | C20: т | D20: 4.11961 | E20: 163275.2798 | F20: 672630.4753 | G20: =u_1(июнь!A$3:A$31,A20,июнь!D$3:D$31) -> 0 | I20: =SUMIF(июнь!$A$3:$A$31,сводная!A20,июнь!$D$3:$D$31) -> 4.11961
A21: 2401 | B21: А400 Ø22мм | C21: т | D21: 2.54229 | E21: 165876.6124 | F21: 421706.4529 | G21: =u_1(июнь!A$3:A$31,A21,июнь!D$3:D$31) -> 0 | I21: =SUMIF(июнь!$A$3:$A$31,сводная!A21,июнь!$D$3:$D$31) -> 2.54229
A22: 2402 | B22: А400 Ø14мм | C22: т | D22: 2.28578 | E22: 167547.8991 | F22: 382977.6367 | G22: =u_1(июнь!A$3:A$31,A22,июнь!D$3:D$31) -> 0 | I22: =SUMIF(июнь!$A$3:$A$31,сводная!A22,июнь!$D$3:$D$31) -> 2.28578
A23: 2403 | B23: А240 Ø14мм | C23: т | D23: 1.75067 | E23: 130318.1636 | F23: 228144.0995 | G23: =u_1(июнь!A$3:A$31,A23,июнь!D$3:D$31) -> 0 | I23: =SUMIF(июнь!$A$3:$A$31,сводная!A23,июнь!$D$3:$D$31) -> 1.75067
A24: 2404 | B24: Вязальная проволока | C24: кг | D24: 267.94 | E24: 198.8548479 | F24: 53281.16796 | G24: =u_1(июнь!A$3:A$31,A24,июнь!D$3:D$31) -> 0 | I24: =SUMIF(июнь!$A$3:$A$31,сводная!A24,июнь!$D$3:$D$31) -> 267.94
A25: 2405 | B25: Устройство монолитных стоек в деревометаллической опалубке, бетон B30 F300 W8 (бетон для транспортного строительства) | C25: м3 | D25: 12.5 | E25: 115750.9011 | F25: 1446886.263 | G25: =u_1(июнь!A$3:A$31,A25,июнь!D$3:D$31) -> 0 | I25: =SUMIF(июнь!$A$3:$A$31,сводная!A25,июнь!$D$3:$D$31) -> 12.5
A26: 2406 | B26: Армирование опор | C26: т | D26: 2.4955 | E26: 83780.62936 | F26: 209074.5606 | G26: =u_1(июнь!A$3:A$31,A26,июнь!D$3:D$31) -> 0 | I26: =SUMIF(июнь!$A$3:$A$31,сводная!A26,июнь!$D$3:$D$31) -> 2.4955
A27: 2407 | B27: Арматура: А400 Ø32мм | C27: т | D27: 1.07328 | E27: 159648.8737 | F27: 171347.9432 | G27: =u_1(июнь!A$3:A$31,A27,июнь!D$3:D$31) -> 0 | I27: =SUMIF(июнь!$A$3:$A$31,сводная!A27,июнь!$D$3:$D$31) -> 1.07328
A28: 2408 | B28: А400 Ø25мм | C28: т | D28: 1.18004 | E28: 162317.6446 | F28: 191541.3133 | G28: =u_1(июнь!A$3:A$31,A28,июнь!D$3:D$31) -> 0 | I28: =SUMIF(июнь!$A$3:$A$31,сводная!A28,июнь!$D$3:$D$31) -> 1.18004
A29: 2409 | B29: А240 Ø10мм | C29: т | D29: 0.24218 | E29: 140113.3899 | F29: 33932.66076 | G29: =u_1(июнь!A$3:A$31,A29,июнь!D$3:D$31) -> 0 | I29: =SUMIF(июнь!$A$3:$A$31,сводная!A29,июнь!$D$3:$D$31) -> 0.24218
A30: 2410 | B30: Вязальная проволока | C30: кг | D30: 49.92 | E30: 197.8948728 | F30: 9878.912051 | G30: =u_1(июнь!A$3:A$31,A30,июнь!D$3:D$31) -> 0 | I30: =SUMIF(июнь!$A$3:$A$31,сводная!A30,июнь!$D$3:$D$31) -> 49.92
A31: 2411 | B31: Устройство монолитного ригеля, бетон B30 F300 W8 (бетон для транспортного строительства) | C31: м3 | D31: 38.45 | E31: 28665.57731 | F31: 1102191.448 | G31: =u_1(июнь!A$3:A$31,A31,июнь!D$3:D$31) -> 38.45 | I31: =SUMIF(июнь!$A$3:$A$31,сводная!A31,июнь!$D$3:$D$31) -> 38.45

Sheet июнь
A3: 2383 | B3: Устройство железобетонных буронабивных свай Ø1,2 м длиной 28,1м под защитой обсадной трубы буровой установкой с крутящим моментом 150-250 кНм с извлечением обсадной трубы в грунтах 2 группы | C3: м3 | D3: 135.65 | E3: 59154.92 | F3: 8024364.542
A4: 2384 | B4: Устройство железобетонных буронабивных свай Ø1,2 м длиной 28,1м под защитой обсадной трубы буровой установкой с крутящим моментом 150-250 кНм с извлечением обсадной трубы в грунтах 3 группы | C4: м3 | D4: 288.25 | E4: 93295.59 | F4: 26892454.64
A5: 2385 | B5: Устройство железобетонных буронабивных свай Ø1,2 м длиной 28,1м под защитой обсадной трубы буровой установкой с крутящим моментом 150-250 кНм с извлечением обсадной трубы в грунтах 4 группы | C5: м3 | D5: 52.56 | E5: 131564.31 | F5: 6915020.205
A6: 2386 | B6: Заполнение бетона B30 F300 W6 методом ВПТ (бетон для транспортного строительства) | C6: м3 | D6: 481.55 | E6: 20955.78 | F6: 10091254.45
A7: 2387 | B7: Арматура: А400 Ø32мм | C7: т | D7: 62.4354 | E7: 160606.39 | F7: 10027524.13
A8: 2388 | B8: А400 Ø22мм | C8: т | D8: 3.22935 | E8: 165876.64 | F8: 535673.735
A9: 2389 | B9: А240 Ø8мм | C9: т | D9: 4.42365 | E9: 1413299.76 | F9: 6251943.498
A10: 2390 | B10: Прокат | C10: т | D10: 4.4649 | E10: 274919.22 | F10: 1227486.813
A11: 2391 | B11: Труба Ø60мм, толщина стенки 2,5мм | C11: т | D11: 4.9554 | E11: 165939.14 | F11: 822294.8181
A12: 2392 | B12: Вязальная проволока | C12: кг | D12: 1401.77 | E12: 198.85 | F12: 278748.7602
A13: 2393 | B13: Погрузка грунта экскаватором емкостью ковша 1,0м3 с последующей транспортировкой в грунтовый резерв, грунт 2 группы(γ=1.96т/м3) | C13: м3 | D13: 135.65 | E13: 376.79 | F13: 51111.59577
A14: 2394 | B14: Погрузка грунта экскаватором емкостью ковша 1,0м3 с последующей транспортировкой в грунтовый резерв, грунт 3 группы(γ=1.97т/м3) | C14: м3 | D14: 288.25 | E14: 396.07 | F14: 114167.1021
A15: 2395 | B15: Погрузка грунта экскаватором емкостью ковша 1,0м3 с последующей транспортировкой в грунтовый резерв, грунт 4 группы(γ=2.00т/м3) | C15: м3 | D15: 52.56 | E15: 427.39 | F15: 22463.562
A16: 2396 | B16: Снятие шламового слоя h=30см с погрузкой экскаватором емк. ковша 1,0м3 в автосамосвалы с последующей транспортировкой на утилизацию | C16: м3 | D16: 5.09 | E16: 6399.864188 | F16: 32575.30872
A17: 2397 | B17: Устройство бетонной подготовки под ростверк опоры, бетон B7,5, h=200мм | C17: м3 | D17: 17.96 | E17: 15859.04911 | F17: 284828.5221
A18: 2398 | B18: Устройство монолитного ростверка в деревометаллической опалубке,, бетон B30 F300 W8 (бетон для транспортного строительства) | C18: м3 | D18: 206.5 | E18: 44736.11095 | F18: 9238006.911
A19: 2399 | B19: Арматура: А400 Ø32мм | C19: т | D19: 2.69874 | E19: 160606.3189 | F19: 433434.6971
A20: 2400 | B20: А400 Ø28мм | C20: т | D20: 4.11961 | E20: 163275.2798 | F20: 672630.4753
A21: 2401 | B21: А400 Ø22мм | C21: т | D21: 2.54229 | E21: 165876.6124 | F21: 421706.4529
A22: 2402 | B22: А400 Ø14мм | C22: т | D22: 2.28578 | E22: 167547.8991 | F22: 382977.6367
A23: 2403 | B23: А240 Ø14мм | C23: т | D23: 1.75067 | E23: 130318.1636 | F23: 228144.0995
A24: 2404 | B24: Вязальная проволока | C24: кг | D24: 267.94 | E24: 198.8548479 | F24: 53281.16796
A25: 2405 | B25: Устройство монолитных стоек в деревометаллической опалубке, бетон B30 F300 W8 (бетон для транспортного строительства) | C25: м3 | D25: 12.5 | E25: 115750.9011 | F25: 1446886.263
A26: 2406 | B26: Армирование опор | C26: т | D26: 2.4955 | E26: 83780.62936 | F26: 209074.5606
A27: 2407 | B27: Арматура: А400 Ø32мм | C27: т | D27: 1.07328 | E27: 159648.8737 | F27: 171347.9432
A28: 2408 | B28: А400 Ø25мм | C28: т | D28: 1.18004 | E28: 162317.6446 | F28: 191541.3133
A29: 2409 | B29: А240 Ø10мм | C29: т | D29: 0.24218 | E29: 140113.3899 | F29: 33932.66076
A30: 2410 | B30: Вязальная проволока | C30: кг | D30: 49.92 | E30: 197.8948728 | F30: 9878.912051
A31: 2411 | B31: Устройство монолитного ригеля, бетон B30 F300 W8 (бетон для транспортного строительства) | C31: м3 | D31: 38.45 | E31: 28665.57731 | F31: 1102191.448

Sheet июль
A3: 2383 | B3: Устройство железобетонных буронабивных свай Ø1,2 м длиной 28,1м под защитой обсадной трубы буровой установкой с крутящим моментом 150-250 кНм с извлечением обсадной трубы в грунтах 2 группы | C3: м3 | D3: 135.65 | E3: 59154.92 | F3: 8024364.542
A4: 2384 | B4: Устройство железобетонных буронабивных свай Ø1,2 м длиной 28,1м под защитой обсадной трубы буровой установкой с крутящим моментом 150-250 кНм с извлечением обсадной трубы в грунтах 3 группы | C4: м3 | D4: 288.25 | E4: 93295.59 | F4: 26892454.64
A5: 2385 | B5: Устройство железобетонных буронабивных свай Ø1,2 м длиной 28,1м под защитой обсадной трубы буровой установкой с крутящим моментом 150-250 кНм с извлечением обсадной трубы в грунтах 4 группы | C5: м3 | D5: 52.56 | E5: 131564.31 | F5: 6915020.205
A6: 2386 | B6: Заполнение бетона B30 F300 W6 методом ВПТ (бетон для транспортного строительства) | C6: м3 | D6: 481.55 | E6: 20955.78 | F6: 10091254.45
A7: 2387 | B7: Арматура: А400 Ø32мм | C7: т | D7: 62.4354 | E7: 160606.39 | F7: 10027524.13
A8: 2388 | B8: А400 Ø22мм | C8: т | D8: 3.22935 | E8: 165876.64 | F8: 535673.735
A9: 2389 | B9: А240 Ø8мм | C9: т | D9: 4.42365 | E9: 1413299.76 | F9: 6251943.498
A10: 2390 | B10: Прокат | C10: т | D10: 4.4649 | E10: 274919.22 | F10: 1227486.813
A11: 2391 | B11: Труба Ø60мм, толщина стенки 2,5мм | C11: т | D11: 4.9554 | E11: 165939.14 | F11: 822294.8181
A12: 2392 | B12: Вязальная проволока | C12: кг | D12: 1401.77 | E12: 198.85 | F12: 278748.7602
A13: 2393 | B13: Погрузка грунта экскаватором емкостью ковша 1,0м3 с последующей транспортировкой в грунтовый резерв, грунт 2 группы(γ=1.96т/м3) | C13: м3 | D13: 135.65 | E13: 376.79 | F13: 51111.59577
A14: 2394 | B14: Погрузка грунта экскаватором емкостью ковша 1,0м3 с последующей транспортировкой в грунтовый резерв, грунт 3 группы(γ=1.97т/м3) | C14: м3 | D14: 288.25 | E14: 396.07 | F14: 114167.1021
A15: 2395 | B15: Погрузка грунта экскаватором емкостью ковша 1,0м3 с последующей транспортировкой в грунтовый резерв, грунт 4 группы(γ=2.00т/м3) | C15: м3 | D15: 52.56 | E15: 427.39 | F15: 22463.562
A16: 2396 | B16: Снятие шламового слоя h=30см с погрузкой экскаватором емк. ковша 1,0м3 в автосамосвалы с последующей транспортировкой на утилизацию | C16: м3 | D16: 5.09 | E16: 6399.864188 | F16: 32575.30872
A17: 2397 | B17: Устройство бетонной подготовки под ростверк опоры, бетон B7,5, h=200мм | C17: м3 | D17: 17.96 | E17: 15859.04911 | F17: 284828.5221
A18: 2398 | B18: Устройство монолитного ростверка в деревометаллической опалубке,, бетон B30 F300 W8 (бетон для транспортного строительства) | C18: м3 | D18: 206.5 | E18: 44736.11095 | F18: 9238006.911
A19: 2399 | B19: Арматура: А400 Ø32мм | C19: т | D19: 2.69874 | E19: 160606.3189 | F19: 433434.6971
A20: 2400 | B20: А400 Ø28мм | C20: т | D20: 4.11961 | E20: 163275.2798 | F20: 672630.4753
A21: 2401 | B21: А400 Ø22мм | C21: т | D21: 2.54229 | E21: 165876.6124 | F21: 421706.4529
A22: 2402 | B22: А400 Ø14мм | C22: т | D22: 2.28578 | E22: 167547.8991 | F22: 382977.6367
A23: 2403 | B23: А240 Ø14мм | C23: т | D23: 1.75067 | E23: 130318.1636 | F23: 228144.0995
A24: 2404 | B24: Вязальная проволока | C24: кг | D24: 267.94 | E24: 198.8548479 | F24: 53281.16796
A25: 2405 | B25: Устройство монолитных стоек в деревометаллической опалубке, бетон B30 F300 W8 (бетон для транспортного строительства) | C25: м3 | D25: 12.5 | E25: 115750.9011 | F25: 1446886.263
A26: 2406 | B26: Армирование опор | C26: т | D26: 2.4955 | E26: 83780.62936 | F26: 209074.5606
A27: 2407 | B27: Арматура: А400 Ø32мм | C27: т | D27: 1.07328 | E27: 159648.8737 | F27: 171347.9432
A28: 2408 | B28: А400 Ø25мм | C28: т | D28: 1.18004 | E28: 162317.6446 | F28: 191541.3133
A29: 2409 | B29: А240 Ø10мм | C29: т | D29: 0.24218 | E29: 140113.3899 | F29: 33932.66076
A30: 2410 | B30: Вязальная проволока | C30: кг | D30: 49.92 | E30: 197.8948728 | F30: 9878.912051
A31: 2411 | B31: Устройство монолитного ригеля, бетон B30 F300 W8 (бетон для транспортного строительства) | C31: м3 | D31: 38.45 | E31: 28665.57731 | F31: 1102191.448
